bitfinex-derivatives/quotes_ETHF0:USTF0_20250626
["timestamp","ask_amount","ask_price","bid_price","bid_amount"]
[1750945320608,0.81926,2440.5,2439.6,27.2137]
[1750945320609,3.2078,2440.5,2439.7,7.332]
[1750945320810,3.2078,2441.3,2440.4,3.2078]
[1750945321104,3.2078,2441.3,2440.7,3.2078]
[1750945321298,3.2078,2441.7,2440.9,7.49879956]
[1750945321498,4.02664,2441.7,2441.3,0.81896]
[1750945321901,3.2078,2442.1,2441.4,3.2078]
[1750945322102,3.2078,2442.1,2441.6,0.81887]
[1750945322406,3.2078,2442.1,2441.7,0.81884]
[1750945322606,4.611,2442.1,2441.5,1.4193]
[1750945322810,0.81882,2441.8,2441.5,9.57119]
[1750945322999,4.611,2442.1,2441.5,8.7523]
[1750945323201,0.81883,2441.8,2441.5,2.23819]
[1750945323509,3.2078,2442.1,2441.5,16.25109956]
[1750945323709,4.611,2442.6,2442.0,3.2078]
[1750945323905,5.42955,2442.6,2442.1,8.7523]
[1750945324110,0.81863,2442.4,2442.1,9.571]
[1750945324413,0.81859,2442.5,2442.2,0.81866]
[1750945324614,3.2078,2442.6,2442.1,8.7523]
[1750945325109,3.2078,2442.3,2442.1,0.8187]
[1750945325407,3.2078,2442.6,2441.8,7.333]
[1750945325610,0.81859,2442.5,2441.9,1.3759]
[1750945325807,0.81859,2442.5,2442.2,0.81865]
[1750945326001,0.81864,2442.3,2442.0,0.81874]
[1750945326207,3.2078,2442.3,2441.8,7.333]
[1750945326401,3.2078,2441.9,2441.8,7.333]
[1750945326807,3.2078,2441.9,2441.8,8.15181]
[1750945327314,0.81867,2442.3,2442.0,0.81873]
[1750945327705,3.2078,2442.4,2441.8,7.333]
[1750945328012,4.02642,2442.4,2442.1,0.81869]
[1750945328707,3.2078,2442.4,2442.1,0.81868]
[1750945328907,0.81867,2442.2,2442.0,0.81872]
[1750945329117,3.2078,2442.4,2441.9,1.3759]
[1750945329309,4.02642,2442.4,2441.9,1.3759]
[1750945329512,0.81864,2442.3,2442.0,0.81872]
[1750945329907,3.2078,2442.1,2441.6,0.7645]
[1750945330108,3.2078,2441.8,2441.6,0.7645]
[1750945330315,4.02662,2441.8,2441.6,1.58337]
[1750945330915,3.2078,2441.8,2441.6,1.58337]
[1750945331117,4.02661,2441.8,2441.6,1.58336]
[1750945331319,3.2078,2441.8,2441.7,0.81884]
[1750945331717,0.81884,2441.7,2441.6,0.7645]
[1750945331908,3.2078,2442.1,2441.4,13.72789649]
[1750945332114,3.2078,2442.1,2441.9,0.81875]
[1750945332309,3.2078,2442.1,2441.9,0.81876]
[1750945332522,4.02651,2442.1,2441.9,0.81876]
[1750945333021,0.81878,2441.9,2441.7,0.81883]
[1750945333411,0.81891,2441.5,2441.4,0.7382]
[1750945333621,4.6529,2441.8,2441.4,8.0722]
[1750945333814,4.02662,2441.8,2441.6,0.81886]
[1750945334117,3.2078,2441.8,2441.4,8.0722]
[1750945334318,0.81891,2441.5,2441.4,0.7382]
[1750945334514,0.81891,2441.5,2441.4,1.55714]
[1750945334824,1.353,2441.7,2441.6,0.81887]
[1750945335008,0.81884,2441.7,2441.5,0.81889]
[1750945335209,0.81896,2441.4,2441.2,0.81899]
[1750945335415,0.81897,2441.3,2441.1,2.26823]
[1750945335615,0.81901,2441.2,2441.1,7.334]
[1750945335817,0.81901,2441.2,2441.0,4.02685]
[1750945336123,3.2078,2441.1,2440.2,1.60390665]
[1750945336322,3.2078,2440.7,2440.6,0.81921]
[1750945336516,3.2078,2440.7,2440.6,2.26841]
[1750945336718,3.2078,2440.7,2440.6,1.4492]
[1750945336914,3.2078,2440.7,2440.6,0.81921]
[1750945337120,3.2078,2441.0,2440.6,0.81921]
[1750945337322,3.2078,2441.0,2440.9,0.81911]
[1750945337919,3.2078,2441.3,2441.2,0.81901]
[1750945338812,3.2078,2441.7,2441.3,2.04743]
[1750945339017,0.81887,2441.6,2441.5,0.81889]
[1750945339236,3.2078,2441.7,2441.6,0.81887]
[1750945339525,3.2078,2442.0,2441.9,0.81876]
[1750945340024,3.2078,2442.3,2442.2,0.81865]
[1750945340217,3.2078,2442.3,2442.2,0.81867]
[1750945340719,3.2078,2442.3,2441.7,7.335]
[1750945340925,3.2078,2442.0,2441.8,0.81879]
[1750945341522,4.02655,2442.0,2441.8,0.81879]
[1750945341827,3.2078,2442.0,2441.9,0.81877]
[1750945342418,3.76612426,2442.5,2441.7,13.72989649]
[1750945342419,4.02644,2442.3,2442.1,0.81868]
[1750945342619,0.81869,2442.2,2442.0,0.81873]
[1750945343028,3.2078,2442.3,2441.9,7.335]
[1750945343227,3.2078,2442.3,2442.2,0.81867]
[1750945343427,2.41702426,2442.5,2442.4,0.8186]
[1750945343635,2.41702426,2442.6,2442.5,0.81857]
[1750945344031,6.42314796,2442.7,2442.6,0.81854]
[1750945345033,6.42314796,2442.7,2442.4,2.1234]
[1750945345524,7.24165796,2442.7,2442.5,0.81856]
[1750945345725,6.42314796,2442.7,2442.6,0.81854]
[1750945346229,3.2078,2442.7,2442.6,5.81854]
[1750945346532,3.2078,2442.7,2442.4,2.1234]
[1750945346723,3.2078,2442.7,2442.4,8.8791]
[1750945346724,2.44950476,2442.5,2442.4,8.8791]
[1750945347024,3.26807476,2442.5,2442.4,0.7265]
[1750945347230,2.44950476,2442.5,2442.0,0.767]
[1750945347432,3.2078,2442.3,2442.1,8.15269]
[1750945347624,2.44950476,2442.5,2442.4,0.8186]
[1750945347824,2.44950476,2442.6,2442.5,0.81857]
[1750945348135,0.81854,2442.6,2442.4,0.81859]
[1750945348336,0.81854,2442.6,2442.3,0.81861]
[1750945348628,3.2078,2442.4,2442.3,0.81861]
[1750945348835,3.2078,2442.4,2442.3,8.15261]
[1750945349028,3.2078,2442.4,2442.3,13.15261]
[1750945349435,3.2078,2442.4,2442.2,1.322]
[1750945349734,3.2078,2442.4,2442.3,8.15264]
[1750945350028,3.2078,2442.4,2442.3,0.81864]
[1750945350236,3.2078,2442.4,2442.2,7.341]
[1750945350429,3.2078,2442.4,2442.3,0.81864]
[1750945350734,4.02642,2442.4,2442.2,8.15966]
[1750945350935,0.81864,2442.3,2442.2,7.341]
[1750945351536,4.02642,2442.4,2442.2,8.15966]
[1750945351728,4.02642,2442.4,2442.2,9.76356665]
[1750945352129,4.02642,2442.4,2442.2,8.94490665]
[1750945352325,0.81864,2442.3,2442.2,1.60390665]
[1750945352632,3.2078,2442.4,2442.3,0.81864]
[1750945352836,3.2078,2442.4,2442.2,1.60390665]
[1750945353136,0.81866,2442.3,2442.1,9.76359665]
[1750945354135,0.8188,2441.8,2441.7,1.60390665]
[1750945354530,1.3609,2441.9,2441.7,1.60390665]
[1750945354736,1.3609,2441.9,2441.8,0.8188]
[1750945354940,3.2078,2442.0,2441.7,1.60390665]
[1750945355238,3.2078,2442.0,2441.8,1.60390665]
[1750945355543,4.02655,2442.0,2441.8,2.42269665]
[1750945355732,0.81877,2441.9,2441.8,1.60390665]
[1750945355936,0.81884,2441.7,2441.6,7.341]
[1750945356134,0.81884,2441.7,2441.6,8.15987]
[1750945356135,3.2078,2441.7,2441.6,8.15987]
[1750945357142,3.2078,2441.7,2441.6,14.55476649]
[1750945357337,3.2078,2441.7,2441.6,8.15987]
[1750945358743,3.2078,2441.7,2441.6,0.81887]
[1750945359043,4.02664,2441.7,2441.4,2.97590665]
[1750945359244,4.02666,2441.7,2441.5,8.15988]
[1750945359544,3.2078,2441.7,2441.6,2.04093215]
[1750945360044,3.2078,2441.7,2441.6,9.85122864]
[1750945360342,3.2078,2441.7,2441.6,10.23307314]
[1750945360537,1.4729,2442.3,2441.6,10.23307314]
[1750945360538,0.7327,2442.3,2441.8,2.04699]
[1750945360739,3.2078,2442.4,2442.3,0.81864]
[1750945361648,0.81854,2442.6,2442.5,0.81856]
[1750945361936,3.2078,2442.7,2442.5,0.81856]
[1750945362145,3.2078,2442.7,2442.6,0.81854]
[1750945362343,3.2078,2442.7,2442.3,13.73589649]
[1750945362532,0.81855,2442.6,2442.5,0.81857]
[1750945362736,0.81854,2442.6,2442.4,0.81858]
[1750945362936,3.2078,2442.7,2442.0,8.56338027]
[1750945363148,0.81865,2442.3,2442.1,0.81868]
[1750945363333,0.81867,2442.2,2442.0,8.15972]
[1750945363538,1.4147,2442.3,2442.1,0.8187]
[1750945363739,0.8187,2442.1,2441.9,49.86008027]
[1750945364047,1.4147,2442.3,2442.1,0.81868]
[1750945364247,1.4147,2442.3,2441.9,49.86008027]
[1750945364451,3.2078,2442.1,2441.8,1.22238027]
[1750945364643,3.2078,2442.1,2441.8,8.56338027]
[1750945364644,0.81877,2441.9,2441.8,8.56338027]
[1750945365043,2.21605,2442.0,2441.9,0.81877]
[1750945365237,2.21605,2442.0,2441.9,1.22224931]
[1750945366450,0.8188,2441.8,2441.7,1.22224931]
[1750945366641,1.3973,2442.0,2441.7,1.22224931]
[1750945366843,2.21606,2442.0,2441.9,1.22224931]
[1750945367243,0.8188,2441.8,2441.7,2.04108931]
[1750945367451,0.81884,2441.7,2441.6,8.94490665]
[1750945367642,2.19144,2441.7,2441.6,8.94490665]
[1750945367950,2.19144,2441.7,2441.6,1.60390665]
[1750945368339,1.3726,2441.7,2441.6,2.42277665]
[1750945368542,2.19144,2441.7,2441.6,1.60390665]
[1750945369050,2.19144,2441.7,2441.6,1.22404242]
[1750945369646,6.3726,2441.7,2441.5,1.22428703]
[1750945369948,0.81894,2441.4,2441.3,1.60390665]
[1750945370248,4.02674,2441.4,2441.3,1.60390665]
[1750945370446,0.81901,2441.2,2441.1,1.60390665]
[1750945371237,0.81904,2441.1,2441.0,9.76397665]
[1750945371440,1.4154,2441.3,2441.0,7.341]
[1750945371640,1.4154,2441.3,2440.9,1.60390665]
[1750945371846,0.81911,2440.9,2440.8,1.60390665]
[1750945372151,0.81921,2440.6,2440.5,1.63331763]
[1750945372645,3.2078,2440.7,2440.5,1.63331763]
[1750945372949,0.81921,2440.6,2440.5,1.63331763]
[1750945373345,2.23461,2440.6,2440.5,0.81924]
[1750945373550,3.2078,2440.7,2440.6,0.81921]
[1750945374049,6.1411,2441.3,2440.8,0.81914]
[1750945374249,6.1411,2441.3,2440.7,0.81915]
[1750945374450,0.81909,2441.0,2440.8,0.81914]
[1750945374650,0.81911,2440.9,2440.8,0.81914]
[1750945374952,0.81917,2440.7,2440.6,3.2078]
[1750945375148,3.2078,2440.8,2440.5,0.81922]
[1750945375341,8.44283649,2440.7,2440.0,7.343]
[1750945375545,8.44283649,2440.7,2439.7,3.2560277]
[1750945375546,0.81947,2439.9,2439.7,1.63331763]
[1750945375746,0.81949,2439.8,2439.6,2.45284763]
[1750945375948,0.81946,2439.9,2439.7,0.81951]
[1750945376241,3.2078,2440.1,2439.7,6.39489649]
[1750945376440,3.2078,2440.1,2439.8,0.81947]
[1750945376646,4.02718,2440.1,2439.9,0.81943]
[1750945377155,3.2078,2440.1,2440.0,0.81941]
[1750945377450,3.2078,2440.1,2439.8,7.344]
[1750945377653,0.81944,2439.9,2439.8,7.344]
[1750945377856,3.2078,2440.1,2439.8,7.344]
[1750945378152,4.02719,2440.1,2439.9,0.81943]
[1750945378340,0.81941,2440.0,2439.9,0.81943]
[1750945378544,4.02719,2440.1,2439.9,0.81943]
[1750945378744,3.2078,2440.1,2440.0,0.81941]
[1750945378945,4.02718,2440.1,2439.9,0.81941]
[1750945379145,0.81941,2440.0,2439.8,8.16346]
[1750945379342,0.81944,2439.9,2439.8,7.344]
[1750945379749,3.2078,2440.1,2439.9,0.81944]
[1750945380057,4.02719,2440.1,2439.9,0.81943]
[1750945380349,0.81951,2439.7,2439.6,1.63331763]
[1750945380650,3.2078,2439.7,2439.6,0.81954]
[1750945380853,3.2078,2440.1,2439.5,11.23601412]
[1750945381152,3.2078,2439.7,2439.6,0.81954]
[1750945381455,3.2078,2439.7,2439.4,0.701]
[1750945381652,3.2078,2439.7,2439.6,0.81954]
[1750945381952,0.81954,2439.6,2439.5,0.81957]
[1750945382148,0.8196,2439.5,2439.3,0.81963]
[1750945382344,3.2078,2439.7,2439.2,7.242]
[1750945382541,3.2078,2440.0,2439.9,0.81944]
[1750945382751,3.2078,2440.4,2439.8,16.84469649]
[1750945382945,4.02709,2440.4,2440.2,0.81932]
[1750945383157,4.02709,2440.4,2439.8,18.89333649]
[1750945383158,3.2078,2440.4,2439.8,10.4498]
[1750945383454,3.2078,2440.4,2439.9,8.06144]
[1750945383652,2.17733,2440.3,2439.9,7.242]
[1750945383856,3.2078,2440.4,2440.3,0.8193]
[1750945384050,0.81932,2440.3,2440.2,0.81933]
[1750945384265,4.02708,2440.4,2440.3,0.8193]
[1750945384457,0.81931,2440.3,2440.1,0.81934]
[1750945384650,4.02709,2440.4,2440.2,0.81931]
[1750945384949,3.2078,2440.4,2440.2,0.81931]
[1750945385164,3.2078,2440.4,2439.9,8.5918]
[1750945385454,0.81939,2440.1,2439.9,7.242]
[1750945385656,0.81939,2440.1,2440.0,0.81941]
[1750945385847,1.3873,2440.3,2439.7,4.7351]
[1750945386047,1.60596,2440.2,2440.0,0.81938]
[1750945386252,0.81937,2440.1,2440.0,0.81938]
[1750945386454,0.7866,2440.2,2439.9,0.81942]
[1750945386654,0.81937,2440.1,2439.9,0.81942]
[1750945386856,0.81944,2439.9,2439.8,0.81945]
[1750945387150,0.7866,2440.2,2439.3,3.2078]
[1750945387151,4.5951,2440.1,2439.3,3.2078]
[1750945387344,0.81959,2439.5,2439.0,8.1922]
[1750945387550,0.81959,2439.5,2439.4,0.81961]
[1750945387856,4.02736,2439.6,2439.5,0.81957]
[1750945388058,2.2068,2439.8,2439.6,0.81951]
[1750945388352,0.81954,2439.6,2439.5,0.81955]
[1750945388550,0.81953,2439.7,2439.3,1.3976]
[1750945388948,0.81953,2439.7,2439.6,0.81954]
[1750945389349,2.20679,2439.8,2439.7,0.81951]
[1750945389745,0.81956,2439.6,2439.5,0.81957]
[1750945390153,3.2078,2439.6,2439.0,1.5375]
[1750945390355,1.3873,2439.8,2438.7,1.63331763]
[1750945390356,0.81981,2438.8,2438.7,1.63331763]
[1750945390555,3.2078,2438.8,2438.7,0.81984]
[1750945390763,3.2078,2438.8,2438.4,7.243]
[1750945391059,4.02764,2438.8,2438.6,0.81987]
[1750945391260,3.2078,2438.8,2438.4,7.243]
[1750945391661,4.02763,2438.8,2438.4,7.243]
[1750945391860,3.2078,2438.8,2438.7,0.81984]
[1750945392262,4.02761,2438.8,2438.7,0.81984]
[1750945392562,0.81991,2438.5,2438.4,7.245]
[1750945392760,0.81996,2438.4,2438.2,1.59239]
[1750945392956,3.2078,2438.5,2438.3,0.81998]
[1750945393159,3.2078,2438.5,2438.2,0.7724]
[1750945393360,3.2078,2438.8,2438.2,2.1133]
[1750945393560,3.2078,2438.8,2438.5,0.8199]
[1750945393755,3.2078,2438.8,2438.6,0.81985]
[1750945394260,3.2078,2438.8,2438.2,3.74661763]
[1750945394261,0.81984,2438.7,2438.5,0.81989]
[1750945394455,3.2078,2438.8,2438.3,2.04995]
[1750945394654,1.5634,2439.2,2438.3,2.04995]
[1750945394655,1.5634,2439.2,2438.7,0.81984]
[1750945394856,3.2078,2439.4,2439.3,0.81964]
[1750945395659,4.02741,2439.4,2439.3,0.81964]
[1750945395856,4.02741,2439.4,2439.2,0.81966]
[1750945396163,3.2078,2439.4,2439.3,0.81964]
[1750945396365,4.02741,2439.4,2439.2,0.81965]
[1750945396559,3.2078,2439.4,2439.3,0.81964]
[1750945396863,4.02741,2439.4,2439.3,0.81964]
[1750945397258,3.2078,2439.4,2439.3,0.81964]
[1750945397764,3.2078,2439.4,2439.3,7.246]
[1750945397965,3.2078,2439.4,2439.3,8.06564]
[1750945398366,3.2078,2439.4,2439.3,0.81964]
[1750945398861,3.2078,2439.4,2439.2,8.06565]
[1750945399061,3.2078,2439.4,2439.2,0.81965]
[1750945399273,2.18524,2439.3,2439.2,7.246]
[1750945399466,2.18524,2439.3,2439.2,8.06567]
[1750945399859,1.3656,2439.3,2438.7,4.622]
[1750945400161,3.2078,2439.1,2438.7,0.81983]
[1750945400357,0.81986,2438.7,2438.3,8.8057]
[1750945400559,3.2078,2438.8,2438.7,0.81984]
[1750945400765,4.02761,2438.8,2438.7,0.81984]
[1750945400967,0.81984,2438.7,2438.6,0.81988]
[1750945401166,0.8199,2438.6,2438.3,8.8057]
[1750945401467,1.3796,2438.7,2438.4,0.81993]
[1750945401666,1.3796,2438.7,2438.3,8.8057]
[1750945401970,0.81991,2438.5,2438.4,0.81992]
[1750945402263,0.81991,2438.5,2438.4,7.246]
[1750945402659,0.81996,2438.4,2437.9,3.2078]
[1750945402859,1.3796,2438.4,2438.1,0.82003]
[1750945403066,3.2078,2438.5,2437.9,10.4538]
[1750945403266,0.82,2438.3,2438.1,0.82002]
[1750945403467,4.5874,2438.5,2438.2,0.82001]
[1750945403662,0.81998,2438.3,2438.2,0.82001]
[1750945403865,0.81996,2438.4,2438.2,0.82001]
[1750945404069,1.4168,2438.3,2438.2,0.82001]
[1750945404264,3.2078,2438.5,2438.4,0.81994]
[1750945404770,4.02773,2438.5,2438.3,0.81996]
[1750945405065,3.2078,2438.5,2438.4,0.81994]
[1750945405868,8.2078,2438.5,2438.3,0.81995]
[1750945406073,0.82,2438.3,2437.7,56.52938]
[1750945406275,0.82005,2438.1,2438.0,0.82008]
[1750945406570,3.2078,2438.2,2438.1,0.82004]
[1750945406782,3.2078,2438.5,2438.4,0.81994]
[1750945407775,3.2078,2438.5,2438.2,0.82001]
[1750945408072,3.2078,2438.8,2438.0,7.53078223]
[1750945408270,6.0967,2439.1,2438.8,0.8198]
[1750945408470,6.0967,2439.1,2438.7,0.81981]
[1750945408671,6.0967,2439.1,2438.5,10.4548]
[1750945409076,6.0967,2439.1,2438.5,11.8147]
[1750945409671,6.0967,2439.1,2438.6,2.04967]
[1750945409876,6.0967,2439.1,2439.0,0.81974]
[1750945410172,7.53078223,2439.6,2438.7,2.04957]
[1750945410173,0.81959,2439.5,2438.9,2.04942]
[1750945410365,12.656,2439.6,2439.5,0.81957]
[1750945410571,12.05806,2439.6,2439.1,2.04928]
[1750945410874,12.05806,2439.6,2439.4,0.8196]
[1750945410875,11.2385,2439.6,2439.4,0.8196]
[1750945411074,0.81957,2439.5,2439.3,0.81963]
[1750945411381,0.81958,2439.5,2439.2,0.81965]
[1750945411576,0.81958,2439.5,2439.2,0.81967]
[1750945411577,0.8196,2439.5,2439.2,0.81967]
[1750945411777,11.2385,2439.6,2439.2,0.81967]
[1750945412077,11.2385,2439.6,2439.3,0.81964]
[1750945412270,3.9915,2439.6,2439.4,0.81958]
[1750945412475,4.81105,2439.6,2439.4,0.81958]
[1750945412675,0.81957,2439.5,2439.3,0.81962]
[1750945412867,3.9915,2439.6,2439.1,0.7469]
[1750945412868,4.81106,2439.6,2439.4,0.81959]
[1750945413268,3.9915,2439.6,2439.5,0.81957]
[1750945413468,0.8107,2439.8,2439.7,0.81951]
[1750945413673,1.63018,2439.8,2439.7,0.81951]
[1750945414074,1.63018,2439.8,2439.6,0.81952]
[1750945414271,3.2078,2439.9,2439.3,10.66234]
[1750945414475,3.2078,2439.9,2439.8,0.81947]
[1750945414674,0.81947,2439.8,2439.7,0.81948]
[1750945415175,3.2078,2439.9,2439.8,0.81947]
[1750945415772,4.02713,2440.3,2440.1,0.81935]
[1750945415973,3.2078,2440.3,2440.2,0.81934]
[1750945416174,3.2078,2440.3,2439.8,12.88728223]
[1750945416379,3.2078,2440.3,2440.2,0.81934]
[1750945416682,2.44950476,2440.8,2440.3,2.04827]
[1750945416978,2.44950476,2440.9,2440.8,0.81914]
[1750945417480,5.65730476,2440.9,2440.7,0.81915]
[1750945417879,2.44950476,2440.9,2440.8,0.81914]
[1750945418274,0.81914,2440.8,2440.7,1.3634]
[1750945418579,6.47646476,2440.8,2440.7,7.289]
[1750945418780,6.47646476,2440.8,2440.4,3.2078]
[1750945418781,0.81924,2440.5,2440.4,3.2078]
[1750945419174,0.81924,2440.5,2440.3,7.288]
[1750945419482,0.81929,2440.4,2440.0,7.288]
[1750945419676,0.8193,2440.3,2440.1,0.81935]
[1750945419980,2.44038589,2440.6,2439.8,1.60476]
[1750945419981,0.81942,2440.0,2439.8,1.60476]
[1750945420176,3.2078,2440.2,2439.8,0.7853]
[1750945420476,0.81948,2439.8,2439.6,0.81951]
[1750945420679,3.2078,2440.2,2439.7,1.63331763]
[1750945420880,0.81941,2440.0,2439.8,0.81945]
[1750945421078,0.81941,2440.0,2439.6,7.288]
[1750945421079,0.8195,2439.8,2439.6,8.10753]
[1750945421276,3.2078,2440.2,2439.6,7.288]
[1750945421482,0.81938,2440.1,2439.9,0.81942]
[1750945421686,0.81945,2439.9,2439.7,0.81951]
[1750945421883,0.81943,2440.0,2439.8,0.81947]
[1750945422089,3.2078,2440.2,2440.1,0.81937]
[1750945422276,4.02714,2440.2,2440.1,0.81937]
[1750945422582,3.2078,2440.2,2440.1,0.81937]
[1750945422977,4.02714,2440.2,2440.0,8.10639]
[1750945423279,0.81934,2440.2,2440.1,0.81937]
[1750945423679,0.81933,2440.3,2440.1,0.81937]
[1750945424077,0.81934,2440.2,2440.1,0.81937]
[1750945424480,0.81932,2440.3,2440.2,0.81934]
[1750945424679,3.2078,2440.5,2440.2,0.81934]
[1750945424680,0.81929,2440.4,2440.2,0.81934]
[1750945425278,3.2078,2440.5,2440.0,8.6889]
[1750945425583,3.2078,2440.5,2440.4,0.81927]
[1750945425784,3.2078,2440.9,2440.4,7.287]
[1750945426082,4.02693,2440.9,2440.4,9.4248]
[1750945426388,3.2078,2440.9,2440.8,0.81914]
[1750945427079,3.2078,2440.9,2440.4,11.47294]
[1750945427080,3.2078,2440.9,2440.6,0.81919]
[1750945427280,0.81916,2440.8,2440.6,0.81919]
[1750945427484,4.02692,2440.9,2440.7,0.81917]
[1750945427784,4.02692,2440.9,2440.4,9.4248]
[1750945427988,3.2078,2440.9,2440.8,0.81914]
[1750945428387,3.2078,2440.9,2440.8,8.10514]
[1750945428583,3.2078,2441.2,2441.1,0.81904]
[1750945428985,0.81904,2441.1,2440.9,0.8191]
[1750945429190,3.2078,2441.2,2440.8,7.286]
[1750945429394,3.2078,2441.2,2441.1,0.81904]
[1750945430281,4.0268,2441.2,2440.8,7.286]
[1750945430689,3.2078,2441.2,2441.1,0.81904]
[1750945430887,0.759,2441.5,2441.4,0.81893]
[1750945431088,0.8189,2441.5,2441.0,2.04763]
[1750945431295,3.2078,2441.6,2441.5,0.8189]
[1750945431789,0.81893,2441.5,2441.1,1.3297]
[1750945431988,4.02668,2441.6,2441.1,1.3297]
[1750945432185,0.8189,2441.5,2441.1,1.3297]
[1750945432388,0.81894,2441.4,2441.3,0.81895]
[1750945432587,0.81894,2441.4,2441.3,7.285]
[1750945432788,0.81909,2441.0,2440.8,1.3297]
[1750945432992,3.2078,2441.1,2440.9,7.285]
[1750945433288,3.2078,2441.1,2441.0,0.81906]
[1750945433486,3.2078,2441.4,2441.3,0.81897]
[1750945433682,3.2078,2441.8,2441.6,0.81886]
[1750945433886,4.02662,2441.8,2441.6,0.81886]
[1750945434185,3.2078,2441.8,2441.3,7.285]
[1750945434496,0.81894,2441.4,2441.3,7.285]
[1750945434689,0.81894,2441.4,2441.1,0.7538]
[1750945434690,0.819,2441.2,2441.1,0.7538]
[1750945434892,0.81896,2441.4,2441.2,8.10299]
[1750945435096,4.02672,2441.5,2441.3,0.81895]
[1750945435397,4.02672,2441.5,2441.2,8.6258]
[1750945435593,3.2078,2441.5,2441.4,0.81894]
[1750945435986,4.0007,2441.9,2441.6,0.81884]
[1750945436292,4.0007,2441.9,2441.3,8.46251088]
[1750945436596,3.2078,2441.9,2441.8,0.8188]
[1750945437189,4.02648,2442.2,2441.6,13.67761088]
[1750945437388,0.8187,2442.1,2441.9,0.81875]
[1750945437585,3.2078,2442.2,2441.7,1.3778]
[1750945437785,0.8187,2442.1,2441.9,0.81874]
[1750945437992,0.81875,2442.0,2441.8,1.5497]
[1750945438295,4.02647,2442.2,2442.0,0.81871]
[1750945438691,3.2078,2442.5,2442.0,7.284]
[1750945438897,3.2078,2442.5,2442.4,0.8186]
[1750945439095,4.552,2442.9,2442.6,0.81852]
[1750945439398,5.37045,2442.9,2442.6,0.81852]
[1750945439694,5.37045,2442.9,2442.1,6.6323]
[1750945439695,0.81867,2442.2,2442.0,0.81872]
[1750945439893,0.81865,2442.3,2442.1,8.10068]
[1750945440289,3.2078,2442.4,2441.9,0.7147]
[1750945440494,0.81863,2442.3,2442.2,7.282]
[1750945440897,4.02642,2442.4,2442.2,7.282]
[1750945441094,0.81863,2442.3,2442.2,7.282]
[1750945441690,3.2078,2442.4,2442.2,7.282]
[1750945441896,0.81851,2442.7,2442.5,0.81854]
[1750945442096,4.02625,2442.9,2442.7,0.81849]
[1750945442306,0.81853,2442.6,2442.5,7.195]
[1750945442500,0.8186,2442.4,2442.3,0.7762]
[1750945442695,3.2078,2442.6,2442.5,0.81857]
[1750945443002,0.8185,2442.7,2442.3,10.4028]
[1750945443204,3.2078,2442.9,2442.4,2.26999]
[1750945443408,0.81849,2442.8,2442.5,0.81855]
[1750945443796,3.2078,2442.9,2442.6,0.81852]
[1750945443997,0.81849,2442.8,2442.7,7.194]
[1750945444309,0.81849,2442.8,2442.5,1.59864]
[1750945444310,0.81853,2442.6,2442.5,0.7801]
[1750945444496,4.02633,2442.6,2442.5,7.9741]
[1750945444696,0.8187,2442.1,2442.0,0.7762]
[1750945444897,4.0265,2442.1,2442.0,7.9702]
[1750945445595,0.8188,2441.8,2441.7,3.9879]
[1750945445901,0.8188,2441.8,2441.7,11.1819]
[1750945446402,0.81878,2441.9,2441.7,12.00073]
[1750945446999,0.8188,2441.8,2441.7,11.1819]
[1750945447198,0.8188,2441.8,2441.7,7.9741]
[1750945447403,0.8188,2441.8,2441.3,53.07690062]
[1750945447404,0.81894,2441.4,2441.3,1.21670062]
[1750945447700,0.81897,2441.3,2441.2,7.194]
[1750945448303,3.2078,2441.4,2441.2,7.194]
[1750945448502,0.81888,2441.6,2441.4,0.81892]
[1750945448702,0.81893,2441.5,2441.3,0.81896]
[1750945448903,2.117,2441.7,2441.2,11.61850062]
[1750945449103,0.81896,2441.4,2441.2,12.43750062]
[1750945449404,0.81892,2441.5,2441.3,0.81897]
[1750945450010,2.117,2441.7,2441.2,10.4018]
[1750945450203,0.81896,2441.4,2441.2,8.01298]
[1750945450405,3.2078,2441.6,2441.3,0.81897]
[1750945450406,0.81892,2441.5,2441.3,0.81897]
[1750945450702,0.81896,2441.4,2441.2,10.4018]
[1750945450905,0.81897,2441.3,2441.2,7.194]
[1750945451100,0.81901,2441.2,2441.0,0.81906]
[1750945451301,0.81901,2441.2,2440.9,4.42450062]
[1750945451302,3.2078,2441.6,2441.1,7.194]
[1750945451502,0.81894,2441.4,2441.2,0.819]
[1750945452007,0.819,2441.2,2441.1,7.194]
[1750945452403,0.81895,2441.4,2441.2,0.81897]
[1750945452606,4.624,2441.6,2441.1,7.194]
[1750945452805,0.819,2441.2,2441.1,7.194]
[1750945453406,4.02679,2441.3,2441.1,7.194]
[1750945453597,0.819,2441.2,2441.1,8.01301]
[1750945453797,3.2078,2441.3,2441.2,0.819]
[1750945454306,4.02677,2441.3,2441.1,8.01302]
[1750945454701,3.2078,2441.3,2441.1,7.194]
[1750945454904,0.819,2441.2,2441.1,8.01303]
[1750945455105,2.2015,2441.6,2441.5,0.8189]
[1750945455307,4.81484,2441.7,2441.2,2.04751]
[1750945455609,3.996,2441.7,2441.6,0.81887]
[1750945455809,4.81483,2441.7,2441.2,1.4059]
[1750945456211,4.81483,2441.7,2441.6,0.81887]
[1750945456406,3.996,2441.7,2441.6,0.81887]
[1750945456610,4.81483,2441.7,2441.6,0.81887]
[1750945456810,0.81887,2441.6,2441.5,7.195]
[1750945457010,2.22987,2441.6,2441.5,7.195]